bitfinex/quotes_SOLUSD_20220212
["timestamp","ask_amount","ask_price","bid_price","bid_amount"]
[1644709825889,5.23,95.626,95.56,15.692]
[1644709826290,6.68785511,95.626,95.56,15.692]
[1644709826491,1.45785511,95.626,95.56,15.692]
[1644709828813,1.45785511,95.627,95.56,15.692]
[1644709830217,24.48685511,95.629,95.56,15.692]
[1644709830415,5.23,95.628,95.56,15.692]
[1644709830817,5.23,95.628,95.561,2.62390296]
[1644709831024,1.45785511,95.635,95.57,15.6887]
[1644709831221,1.45785511,95.643,95.571,1.05136287]
[1644709831418,1.45785511,95.643,95.571,3.69926583]
[1644709831618,46.15662704,95.648,95.572,2.62390296]
[1644709831822,1.45785511,95.646,95.572,2.64790296]
[1644709832020,1.45785511,95.647,95.573,0.024]
[1644709832220,0.25,95.645,95.573,2.64790296]
[1644709832420,0.25,95.645,95.574,24.405]
[1644709832619,0.25,95.645,95.574,27.02890296]
[1644709832822,0.25,95.645,95.59,15.6855]
[1644709833621,5.229,95.647,95.59,15.6855]
[1644709834824,1.45785511,95.648,95.591,2.62390296]
[1644709835026,1.45785511,95.652,95.6,15.6813]
[1644709835331,1.45785511,95.662,95.601,2.62390296]
[1644709835538,1.45785511,95.664,95.601,2.62390296]
[1644709835826,1.45785511,95.662,95.602,30.63799822]
[1644709836227,0.25,95.661,95.603,2.62390296]
[1644709836727,0.25,95.661,95.61,15.6824]
[1644709837126,45.13502788,95.663,95.61,15.6824]
[1644709838627,5.478,95.662,95.61,15.6824]
[1644709838828,0.25,95.662,95.61,15.6824]
[1644709839230,0.25,95.662,95.59,15.6857]
[1644709839430,1.45785511,95.657,95.59,15.6857]
[1644709839629,1.45785511,95.655,95.59,15.6857]
[1644709840031,5.228,95.654,95.59,15.6857]
[1644709840434,1.45785511,95.656,95.59,15.6857]
[1644709840631,1.45785511,95.654,95.59,15.6857]
[1644709841133,5.228,95.653,95.59,15.6857]
[1644709841735,24.4068,95.659,95.591,2.62390296]
[1644709841937,0.03759458,95.66,95.591,2.62390296]
[1644709842139,0.03759458,95.662,95.61,15.6821]
[1644709842337,1.45785511,95.671,95.61,15.6821]
[1644709842636,1.45785511,95.678,95.611,26.30910296]
[1644709842835,1.45785511,95.679,95.612,103.9]
[1644709843038,1.45785511,95.68,95.612,106.52390296]
[1644709843237,1.45785511,95.687,95.62,15.6783]
[1644709843436,23.6676,95.707,95.62,15.6783]
[1644709843437,1.45785511,95.694,95.63,14.99]
[1644709843637,0.03759458,95.692,95.63,67.2449]
[1644709843836,1.45785511,95.694,95.63,67.2449]
[1644709844037,1.45785511,95.695,95.63,67.2449]
[1644709844236,1.45785511,95.694,95.63,67.2449]
[1644709844837,0.25,95.693,95.63,67.2449]
[1644709845738,0.25,95.693,95.64,15.6765]
[1644709849436,1.45785511,95.7,95.641,106.52390296]
[1644709849637,5.226,95.746,95.641,106.52390296]
[1644709849638,0.03759458,95.711,95.651,103.9]
[1644709849837,1.45785511,95.722,95.66,14.99]
[1644709850038,0.03759458,95.721,95.66,14.99]
[1644709850237,1.45785511,95.733,95.66,14.99]
[1644709850438,0.03759458,95.729,95.661,24.0456]
[1644709850640,1.45785511,95.724,95.661,24.0456]
[1644709850839,1.45785511,95.72,95.661,24.0456]
[1644709851042,1.45785511,95.719,95.661,24.0456]
[1644709851243,5.224,95.722,95.661,24.0456]
[1644709851439,5.224,95.722,95.661,56.20046193]
[1644709852045,5.224,95.722,95.661,24.0456]
[1644709852642,0.25,95.723,95.661,24.0456]
[1644709853256,5.224,95.722,95.661,24.0456]
[1644709854666,5.26227284,95.73,95.67,15.6733]
[1644709854868,0.03827284,95.728,95.67,15.6733]
[1644709855069,23.4292,95.731,95.67,15.6733]
[1644709855868,0.25,95.73,95.67,15.6733]
[1644709858477,1.45785511,95.739,95.671,106.52390296]
[1644709858674,1.45785511,95.747,95.69,15.6681]
[1644709858876,0.03827284,95.737,95.69,15.6681]
[1644709859076,1.45785511,95.753,95.69,15.6681]
[1644709859278,47.49661828,95.747,95.69,15.6681]
[1644709859476,42.27361828,95.747,95.69,15.6681]
[1644709859678,5.223,95.746,95.69,15.6681]
[1644709860275,0.25,95.745,95.69,15.6681]
[1644709861876,5.223,95.746,95.7,15.6665]
[1644709862077,1.45785511,95.75,95.7,15.6665]
[1644709862280,1.45785511,95.757,95.7,30.6565]
[1644709862477,1.45785511,95.762,95.7,30.6565]
[1644709862876,1.45785511,95.765,95.7,30.6565]
[1644709863077,1.45785511,95.765,95.701,23.0475]
[1644709863276,1.45785511,95.765,95.71,15.6651]
[1644709863477,1.45785511,95.762,95.71,15.6651]
[1644709863677,1.70785511,95.764,95.71,15.6651]
[1644709863876,0.25,95.764,95.71,15.6651]
[1644709864378,0.25,95.764,95.711,11.77632983]
[1644709864778,0.25,95.764,95.72,15.6646]
[1644709867280,0.25,95.764,95.7,30.6568]
[1644709867481,0.25,95.764,95.67,14.99]
[1644709867482,7.84590296,95.763,95.67,14.99]
[1644709867679,1.45785511,95.755,95.653,24.0956]
[1644709867881,1.45785511,95.749,95.653,24.0956]
[1644709868079,1.45785511,95.747,95.654,37.76709891]
[1644709868280,1.45785511,95.746,95.654,37.76709891]
[1644709868479,1.49612795,95.746,95.654,37.76709891]
[1644709868781,1.49612795,95.746,95.66,15.6733]
[1644709868979,28.6235,95.745,95.66,15.6733]
[1644709869184,1.45785511,95.743,95.66,15.6733]
[1644709869389,1.45785511,95.739,95.66,15.6733]
[1644709869787,0.03827284,95.738,95.66,15.6733]
[1644709869987,5.26227284,95.738,95.66,15.6733]
[1644709870186,5.26227284,95.744,95.66,15.6733]
[1644709870386,0.03827284,95.737,95.66,15.6733]
[1644709870588,5.224,95.736,95.66,15.6733]
[1644709870791,0.03827284,95.736,95.66,15.6733]
[1644709870989,0.03827284,95.735,95.66,15.6733]
[1644709871189,1.49612795,95.744,95.66,15.6733]
[1644709871389,0.03827284,95.734,95.66,15.6733]
[1644709871589,0.03827284,95.743,95.66,15.6733]
[1644709871788,0.03827284,95.734,95.66,15.6733]
[1644709871992,0.03827284,95.742,95.66,15.6733]
[1644709872191,0.03827284,95.734,95.66,30.6633]
[1644709872390,1.49612795,95.744,95.66,30.6633]
[1644709872588,0.03827284,95.734,95.66,30.6633]
[1644709872790,0.03827284,95.743,95.66,30.6633]
[1644709872992,0.03827284,95.734,95.68,15.6712]
[1644709873191,0.03827284,95.742,95.662,23.0294]
[1644709873391,6.68185511,95.733,95.662,23.0294]
[1644709873589,1.45785511,95.733,95.662,23.0294]
[1644709873789,1.45785511,95.729,95.662,23.0294]
[1644709873995,1.45785511,95.727,95.662,23.0294]
[1644709874194,1.45785511,95.725,95.662,23.0294]
[1644709874594,5.224,95.724,95.662,23.0294]
[1644709875095,6.68185511,95.724,95.662,23.0294]
[1644709875294,1.45785511,95.724,95.662,23.0294]
[1644709875497,1.45785511,95.722,95.662,23.0294]
[1644709875895,5.224,95.721,95.662,23.0294]
[1644709876595,1.45785511,95.737,95.67,15.6727]
[1644709876796,0.03827284,95.736,95.67,15.6727]
[1644709877097,1.45785511,95.742,95.67,15.6727]
[1644709877295,5.224,95.741,95.67,15.6727]
[1644709877699,6.68185511,95.741,95.67,15.6727]
[1644709877902,0.03827284,95.743,95.67,15.6727]
[1644709877903,1.45785511,95.739,95.67,15.6727]
[1644709878102,5.224,95.738,95.67,15.6727]
[1644709878304,1.45785511,95.736,95.67,15.6727]
[1644709878703,1.45785511,95.732,95.67,15.6727]
[1644709879106,5.224,95.731,95.67,15.6727]
[1644709879715,6.68185511,95.731,95.664,22.5046]
[1644709879909,1.45785511,95.725,95.664,22.5046]
[1644709880208,1.45785511,95.721,95.664,22.5046]
[1644709880422,1.45785511,95.719,95.664,22.5046]
[1644709880821,54.30448443,95.718,95.664,22.5046]
[1644709881023,49.08048443,95.718,95.664,22.5046]
[1644709881224,5.224,95.717,95.664,22.5046]
[1644709881823,5.224,95.717,95.665,0.25]
[1644709882024,47.62262932,95.718,95.665,0.25]
[1644709885429,47.62262932,95.718,95.664,22.5046]
[1644709885627,49.08048443,95.718,95.664,22.5046]
[1644709885827,6.68185511,95.717,95.664,22.5046]
[1644709886326,1.45785511,95.716,95.664,22.5046]
[1644709886727,6.68185511,95.717,95.664,22.5046]
[1644709888133,5.224,95.717,95.664,22.5046]
[1644709888337,5.224,95.717,95.665,0.25]
[1644709888534,47.62262932,95.718,95.665,0.25]
[1644709889139,47.62262932,95.718,95.664,22.5046]
[1644709889538,5.224,95.717,95.664,22.5046]
[1644709889939,6.68185511,95.717,95.664,22.5046]
[1644709890140,5.224,95.717,95.664,22.5046]
[1644709890338,5.224,95.717,95.665,0.25]
[1644709890538,47.62262932,95.718,95.665,0.25]
[1644709891940,47.62262932,95.718,95.67,15.673]
[1644709892340,1.45785511,95.724,95.671,2.62390296]
[1644709892543,1.45785511,95.734,95.671,2.62390296]
[1644709892739,0.03827284,95.735,95.671,13.14584663]
[1644709892939,1.45785511,95.735,95.672,10.52194367]
[1644709893355,48.51034772,95.734,95.672,10.52194367]
[1644709893641,48.51034772,95.734,95.673,103.9]
[1644709893840,0.25,95.733,95.68,15.6695]
[1644709895045,1.45785511,95.73,95.674,10.52194367]
[1644709895242,1.45785511,95.726,95.66,30.6637]
[1644709895440,1.45785511,95.725,95.66,15.6737]
[1644709895643,1.45785511,95.72,95.66,15.6737]
[1644709896243,1.45785511,95.718,95.66,15.6737]
[1644709896443,5.224,95.717,95.66,15.6737]
[1644709896643,1.45785511,95.716,95.66,15.6737]
[1644709896844,1.45785511,95.709,95.66,15.6737]
[1644709897545,1.45785511,95.713,95.665,0.25]
[1644709897746,1.45785511,95.716,95.665,0.25]
[1644709898543,1.45785511,95.716,95.67,15.6726]
[1644709899847,22.7912,95.733,95.67,15.6726]
[1644709899848,1.45785511,95.717,95.67,15.6726]
[1644709900051,1.45785511,95.718,95.67,15.6726]
[1644709900450,1.45785511,95.716,95.67,15.6726]
[1644709902449,1.45785511,95.715,95.67,15.6726]
[1644709902653,1.45785511,95.714,95.67,15.6726]
[1644709903451,1.45785511,95.715,95.67,15.6726]
[1644709903651,1.45785511,95.716,95.67,15.6726]
[1644709903950,1.45785511,95.72,95.67,26.19454367]
[1644709904152,1.45785511,95.723,95.68,15.6703]
[1644709904349,1.45785511,95.726,95.68,15.6703]
[1644709904551,1.45785511,95.727,95.681,10.52194367]
[1644709904750,1.45785511,95.727,95.681,13.14584663]
[1644709904951,1.45785511,95.73,95.681,13.14584663]
[1644709905157,1.45785511,95.74,95.682,36.90364663]
[1644709905358,1.45785511,95.744,95.69,15.6679]
[1644709905553,1.45785511,95.744,95.69,30.6579]
[1644709905753,1.45785511,95.756,95.691,18.36884663]
[1644709905952,0.03827284,95.754,95.701,9.57240131]
[1644709906152,1.45785511,95.757,95.702,5.222]
[1644709906575,1.45785511,95.756,95.702,5.222]
[1644709906777,1.45785511,95.752,95.71,15.6642]
[1644709906975,1.45785511,95.755,95.71,15.6642]
[1644709907178,1.45785511,95.756,95.71,15.6642]
[1644709907680,1.45785511,95.755,95.71,15.6642]
[1644709908078,1.45785511,95.76,95.71,15.6642]
[1644709908378,0.25,95.759,95.71,15.6642]
[1644709908578,0.25,95.759,95.72,15.6642]
[1644709910579,22.6782,95.775,95.72,15.6642]
[1644709912280,0.25,95.774,95.72,15.6642]
[1644709914690,5.222,95.773,95.72,15.6642]
[1644709916186,0.25,95.774,95.72,15.6642]
[1644709917491,5.222,95.773,95.72,15.6642]
[1644709920093,0.25,95.774,95.72,15.6642]
[1644709924297,0.25,95.774,95.705,5.222]
[1644709924498,5.222,95.773,95.704,24.9662]
[1644709924698,5.26027284,95.773,95.704,24.9662]
[1644709925498,5.26027284,95.773,95.705,0.25]
[1644709925698,5.222,95.773,95.705,0.25]
[1644709926299,5.222,95.773,95.704,24.9662]
[1644709926499,5.26027284,95.773,95.704,24.9662]
[1644709927699,0.03827284,95.773,95.704,24.9662]
[1644709927898,0.28827284,95.774,95.704,24.9662]
[1644709928098,5.26027284,95.773,95.705,0.25]
[1644709928300,5.222,95.773,95.705,0.25]
[1644709928599,5.222,95.773,95.7,15.6667]
[1644709928802,0.03827284,95.772,95.7,15.6667]
[1644709929001,5.222,95.771,95.7,15.6667]
[1644709931306,5.222,95.771,95.701,2.87390296]
[1644709931504,0.03827284,95.771,95.72,15.6646]
[1644709931704,22.6782,95.775,95.72,15.6646]
[1644709932308,0.03827284,95.786,95.72,15.6646]
[1644709932506,0.25,95.775,95.722,9.87973473]
[1644709933205,0.25,95.775,95.73,15.6629]
[1644709936005,0.25,95.775,95.731,5.221]
[1644709939424,0.25,95.775,95.73,15.6629]
[1644709942833,0.25,95.775,95.721,24.5553]
[1644709943035,0.25,95.775,95.71,15.665]
[1644709943234,9.7791199,95.774,95.703,24.2332]
[1644709943436,4.5571199,95.773,95.68,14.99]
[1644709943639,2.92156324,95.759,95.664,24.4996]
[1644709943835,2.92156324,95.757,95.664,24.4996]
[1644709944034,24.0074,95.756,95.664,58.95864729]
[1644709944240,29.26967284,95.756,95.68,15.6711]
[1644709944436,4.59539274,95.755,95.664,24.4996]
[1644709944637,5.224,95.754,95.664,24.4996]
[1644709944837,7.51695598,95.753,95.664,24.4996]
[1644709945038,2.92156324,95.75,95.664,24.4996]
[1644709945238,2.95983608,95.749,95.664,24.4996]
[1644709945438,109.124,95.748,95.664,24.4996]
[1644709945639,4.5571199,95.747,95.664,24.4996]
[1644709945838,9.81939274,95.747,95.664,24.4996]
[1644709946037,4.59539274,95.746,95.664,24.4996]
[1644709946239,5.224,95.745,95.665,0.25]
[1644709946438,0.03827284,95.744,95.665,0.25]
[1644709946640,5.224,95.743,95.665,0.25]
[1644709947039,23.29307284,95.742,95.664,24.4996]
[1644709947239,28.4788,95.742,95.665,0.25]
[1644709947438,0.03827284,95.741,95.665,0.25]
[1644709947639,5.224,95.74,95.665,0.25]
[1644709949943,5.224,95.741,95.665,0.25]
[1644709950544,5.224,95.741,95.66,15.6732]
[1644709950744,5.224,95.741,95.64,67.234]
[1644709950745,126.81873529,95.74,95.64,15.6767]
[1644709950950,2.92156324,95.736,95.611,23.9414]
[1644709951146,5.226,95.735,95.596,0.024]
[1644709951344,5.226,95.735,95.593,0.024]
[1644709951345,2.92156324,95.721,95.593,0.024]
[1644709951544,2.92156324,95.721,95.591,27.03180778]
[1644709951545,44.52901353,95.718,95.597,20.09438403]
[1644709951952,106.52390296,95.717,95.598,0.024]
[1644709952152,111.75090296,95.717,95.593,20.11838403]
[1644709952346,2.62390296,95.716,95.594,0.024]
[1644709952545,103.9,95.714,95.594,0.024]
[1644709952747,15.6846,95.7,95.6,15.6835]
[1644709952948,5.227,95.713,95.6,15.6835]
[1644709953247,5.227,95.713,95.61,14.99]
[1644709953458,5.227,95.713,95.611,23.1966]
[1644709954050,5.227,95.713,95.612,23.0246]
[1644709954253,0.25,95.712,95.612,23.0246]
[1644709954552,5.226,95.711,95.612,23.0246]
[1644709954751,103.9,95.71,95.62,15.6798]
[1644709954951,5.226,95.709,95.621,7.03210017]
[1644709955250,23.0852,95.708,95.622,24.8942]
[1644709955650,5.226,95.707,95.622,24.8942]
[1644709957153,5.226,95.707,95.63,15.6794]
[1644709957353,23.0852,95.708,95.63,15.6794]
[1644709958753,103.9,95.707,95.612,23.0246]
[1644709958953,111.74990296,95.707,95.612,23.0246]
[1644709959155,2.62390296,95.706,95.601,24.5704]
[1644709959357,166.49,95.702,95.602,0.024]
[1644709959557,103.9,95.689,95.596,0.024]
[1644709959758,14.99,95.69,95.58,3.552763]
[1644709959759,103.9,95.679,95.581,33.14313411]
[1644709959957,103.9,95.679,95.582,0.024]
[1644709960157,103.9,95.677,95.582,0.024]
[1644709960354,103.9,95.675,95.582,0.024]
[1644709960857,103.9,95.675,95.582,0.274]
[1644709961055,103.9,95.675,95.583,0.024]
[1644709961256,103.9,95.673,95.583,0.024]
[1644709961657,5.228,95.672,95.583,0.024]
[1644709961855,103.9,95.669,95.583,0.024]
[1644709963256,5.228,95.668,95.583,0.024]
[1644709963455,103.9,95.667,95.583,0.024]
[1644709963856,5.228,95.666,95.583,0.024]
[1644709969964,5.228,95.673,95.583,0.024]
[1644709970167,23.471,95.665,95.583,0.024]
[1644709970366,5.228,95.664,95.583,0.024]
[1644709971966,103.9,95.663,95.583,0.024]
[1644709972169,103.9,95.661,95.583,0.024]
[1644709972566,5.228,95.66,95.583,0.024]
[1644709972973,103.9,95.659,95.583,0.024]
[1644709973368,5.228,95.658,95.583,0.024]
[1644709973567,140.70407412,95.657,95.583,0.024]
[1644709973969,5.229,95.656,95.583,0.024]
[1644709974786,5.229,95.656,95.582,23.7909]
[1644709974986,5.229,95.656,95.582,23.8149]
[1644709975587,103.9,95.655,95.582,23.8149]
[1644709975788,5.229,95.654,95.582,23.8149]
[1644709976488,103.9,95.652,95.582,23.8149]
[1644709976687,103.9,95.652,95.582,23.7909]
[1644709977789,103.9,95.65,95.582,23.7909]
[1644709978290,5.229,95.649,95.582,23.7909]
[1644709978690,103.9,95.648,95.582,23.7909]
[1644709979089,5.229,95.647,95.582,23.7909]
[1644709979289,109.129,95.647,95.582,23.7909]
[1644709979489,103.9,95.647,95.582,23.7909]
[1644709979688,5.229,95.646,95.582,23.7909]
[1644709980089,5.229,95.652,95.582,23.7909]
[1644709981289,0.25,95.651,95.582,23.7909]
[1644709981490,5.229,95.65,95.582,23.7909]
[1644709982700,36.80407412,95.657,95.583,2.87390296]
[1644709982903,5.229,95.673,95.583,2.87390296]
[1644709983100,29.7181,95.673,95.584,2.62390296]
[1644709983306,29.7181,95.673,95.584,2.64790296]
[1644709983502,29.7181,95.673,95.585,0.024]
[1644709983706,24.4891,95.673,95.59,15.6859]
[1644709983904,5.228,95.689,95.591,0.024]
[1644709984113,0.25,95.672,95.591,37.23891105]
[1644709984305,0.25,95.672,95.592,17.50080447]
[1644709984506,0.25,95.672,95.593,0.024]
[1644709984706,0.25,95.672,95.593,20.12470743]
[1644709984906,0.25,95.672,95.594,30.36296359]
[1644709985107,0.25,95.672,95.594,30.38696359]
[1644709985306,0.25,95.672,95.595,2.64790296]
[1644709985512,0.25,95.672,95.596,0.024]
[1644709985707,0.25,95.672,95.61,14.99]
[1644709985911,0.25,95.672,95.611,23.3556]
[1644709986308,0.25,95.672,95.611,25.97950296]
[1644709986908,0.25,95.672,95.62,15.681]
[1644709987109,41.07771065,95.699,95.62,15.681]
[1644709987407,35.84971065,95.699,95.621,2.62390296]
[1644709987608,5.226,95.717,95.621,2.62390296]
[1644709987809,5.226,95.723,95.622,48.4327]
[1644709988013,5.226,95.727,95.622,48.4327]
[1644709988212,5.224,95.733,95.623,2.62390296]
[1644709988515,39.11506404,95.731,95.624,34.45708352]
[1644709988719,5.224,95.73,95.624,34.45708352]
[1644709989011,5.224,95.73,95.63,15.6779]
[1644709989211,0.25,95.729,95.63,15.6779]
[1644709989416,5.224,95.728,95.631,2.62390296]
[1644709989814,103.9,95.727,95.631,2.62390296]
[1644709990013,5.224,95.726,95.631,2.62390296]
[1644709990616,5.224,95.726,95.624,34.45708352]
[1644709990814,103.9,95.725,95.624,34.45708352]
[1644709991118,9.83217123,95.724,95.624,34.45708352]
[1644709991514,4.60617123,95.723,95.624,34.45708352]
[1644709991715,103.9,95.721,95.624,34.45708352]
[1644709991916,103.9,95.719,95.624,34.45708352]
[1644709993316,5.226,95.718,95.624,34.45708352]
[1644709993622,103.9,95.717,95.624,34.45708352]
[1644709995519,5.226,95.716,95.624,34.45708352]
[1644709995722,103.9,95.715,95.624,34.45708352]
[1644709996123,5.226,95.714,95.624,34.45708352]
[1644709996523,103.9,95.713,95.624,34.45708352]
[1644709996921,103.9,95.711,95.624,34.45708352]
[1644709997322,103.9,95.709,95.624,34.45708352]
[1644709997525,23.9589,95.708,95.624,34.45708352]
[1644709997722,29.1849,95.708,95.624,34.45708352]
[1644709998324,23.9589,95.708,95.625,2.62390296]
[1644709998526,23.9589,95.708,95.63,15.6791]
[1644709998828,103.9,95.707,95.63,15.6791]
[1644709999027,5.226,95.707,95.63,15.6791]
[1644709999628,103.9,95.706,95.63,15.6791]
[1644710000442,5.226,95.707,95.63,15.6791]
[1644710001240,5.226,95.707,95.631,2.62390296]
[1644710001444,23.9589,95.708,95.64,15.6769]
[1644710001843,23.9589,95.708,95.641,2.62390296]
[1644710002644,0.25,95.707,95.641,2.62390296]
[1644710003243,0.25,95.707,95.65,15.6759]
[1644710006846,0.25,95.707,95.65,26.6259]
[1644710007449,0.25,95.707,95.651,25.66410296]
[1644710007746,22.5591,95.734,95.66,15.6731]
[1644710008149,5.224,95.742,95.661,2.62390296]
[1644710008350,5.224,95.742,95.662,5.13986063]
[1644710008552,0.03827284,95.741,95.662,28.15676063]
[1644710008751,0.03827284,95.743,95.663,2.62390296]
[1644710008953,0.03827284,95.74,95.663,2.62390296]
[1644710009156,0.03827284,95.742,95.663,2.62390296]
[1644710009355,0.03827284,95.739,95.663,2.62390296]
[1644710009554,0.28827284,95.744,95.663,2.62390296]
[1644710009756,0.03827284,95.739,95.67,15.6722]
[1644710009958,0.03827284,95.743,95.671,5.224]
[1644710010158,0.28827284,95.744,95.671,5.224]
[1644710010457,0.25,95.744,95.671,5.224]
[1644710011562,5.474,95.744,95.671,5.224]
[1644710013163,5.474,95.744,95.68,15.6712]
[1644710013565,5.474,95.744,95.681,2.62390296]
[1644710013865,0.03827284,95.765,95.681,2.62390296]
[1644710014065,0.03827284,95.767,95.681,2.62390296]
[1644710014268,0.03827284,95.764,95.681,2.62390296]
[1644710014666,22.61717284,95.764,95.681,2.62390296]
[1644710014868,22.61717284,95.764,95.691,34.45708352]
[1644710015069,5.473,95.763,95.692,22.6485]
[1644710015469,5.223,95.763,95.692,22.6485]
[1644710016368,22.61717284,95.764,95.693,5.223]
[1644710016569,22.5789,95.764,95.693,5.223]
[1644710016772,22.5789,95.764,95.7,15.6679]
[1644710017170,0.03827284,95.78,95.7,15.6679]
[1644710017370,5.222,95.779,95.701,7.84590296]
[1644710017569,0.03827284,95.779,95.701,7.84590296]
[1644710017773,5.472,95.778,95.702,2.62390296]
[1644710017971,36.8723587,95.777,95.703,24.4811]
[1644710018172,42.13263154,95.777,95.71,15.6658]
[1644710018372,42.0943587,95.777,95.71,15.6658]
[1644710019173,42.0943587,95.777,95.711,2.62390296]
[1644710019379,5.222,95.777,95.72,15.6643]
[1644710019872,0.25,95.776,95.72,15.6643]
[1644710020073,0.25,95.776,95.721,23.6661]
[1644710020276,0.25,95.776,95.72,15.6643]
[1644710020473,103.9,95.774,95.699,2.62390296]
[1644710020672,103.9,95.774,95.669,5.222]
[1644710020673,9.85612457,95.773,95.669,5.222]
[1644710020874,12.48002753,95.773,95.651,71.9864]
[1644710021075,2.6621758,95.772,95.651,71.9864]
[1644710021274,103.9,95.77,95.651,71.9864]
[1644710021476,103.9,95.768,95.652,33.08869511]
[1644710021673,9.89639741,95.767,95.652,33.08869511]
[1644710021877,103.9,95.766,95.66,15.6731]
[1644710022074,5.26127284,95.765,95.66,15.6731]
[1644710022375,103.93827284,95.764,95.66,15.6731]
[1644710022579,103.9,95.762,95.66,15.6731]
[1644710022775,103.9,95.76,95.66,15.6731]
[1644710023176,4.67239741,95.759,95.66,15.6731]
[1644710023376,103.9,95.757,95.66,15.6731]
[1644710023577,0.03827284,95.756,95.66,15.6731]
[1644710023780,2.6621758,95.756,95.66,15.6731]
[1644710023979,0.03827284,95.755,95.66,15.6731]
[1644710024185,12.51931623,95.755,95.652,33.08869511]
[1644710024384,30.6657,95.75,95.641,0.024]
[1644710024678,30.6657,95.75,95.631,0.024]
[1644710024679,103.9,95.748,95.631,0.024]
[1644710024882,2.92156324,95.742,95.642,0.024]
[1644710025081,2.92156324,95.744,95.621,0.024]
[1644710025278,7.34790296,95.741,95.621,0.024]
[1644710025484,68.32501553,95.74,95.621,30.98239089]
[1644710025678,103.9,95.738,95.622,0.024]
[1644710025879,15.6795,95.73,95.63,15.6793]
[1644710026080,103.9,95.729,95.631,0.024]
[1644710026279,109.124,95.729,95.631,0.024]
[1644710026484,111.74790296,95.729,95.631,0.024]
[1644710026699,2.62390296,95.728,95.631,0.024]
[1644710026902,15.6805,95.72,95.631,0.024]
[1644710027099,5.224,95.719,95.623,0.024]
[1644710027401,106.52390296,95.719,95.622,0.024]
[1644710027600,7.84990296,95.718,95.622,0.024]
[1644710028001,2.62390296,95.717,95.622,0.024]
[1644710028200,103.9,95.715,95.622,0.024]
[1644710028402,5.226,95.714,95.622,0.024]
[1644710028600,103.9,95.713,95.622,0.024]
[1644710028805,42.4012704,95.709,95.622,0.024]
[1644710029203,103.9,95.708,95.622,0.024]
[1644710029404,5.226,95.707,95.622,0.024]
[1644710029603,5.226,95.708,95.622,0.024]
[1644710029903,103.9,95.707,95.622,0.024]
[1644710030103,5.226,95.706,95.622,0.024]
[1644710030302,103.9,95.705,95.622,0.024]
[1644710030704,1.45917057,95.696,95.622,0.024]
[1644710030904,1.45917057,95.697,95.622,0.024]
[1644710031807,1.45917057,95.697,95.621,30.95839089]
[1644710032008,5.226,95.696,95.621,30.95839089]
[1644710032206,103.9,95.695,95.621,30.95839089]
[1644710032705,1.45917057,95.698,95.621,30.95839089]
[1644710032706,5.226,95.694,95.621,30.95839089]
[1644710032906,5.226,95.697,95.621,30.95839089]
[1644710034308,5.226,95.699,95.621,30.95839089]
[1644710034509,5.226,95.699,95.622,0.024]
[1644710034910,5.226,95.699,95.622,0.274]
[1644710035113,5.226,95.706,95.63,15.6787]
[1644710035318,24.9599,95.707,95.63,15.6787]
[1644710037813,2.726,95.706,95.63,15.6787]
[1644710043623,24.9599,95.707,95.63,15.6787]
[1644710044523,24.9599,95.707,95.63,18.30260296]
[1644710044722,1.45917057,95.726,95.63,33.29260296]
[1644710044924,1.45917057,95.726,95.631,22.8373]
[1644710045129,1.45917057,95.726,95.65,15.6745]
[1644710045348,1.45917057,95.726,95.651,8.63855326]